Cogmind - Beta 14 @@@ ROGUE MODE // 2024.08.26 @ 20:20:14 Player: star Result: Destroyed by KJ-QIH(R) with Subdweller Machine Gun Performance ------------- Evolutions (0) 0 Regions Visited (2) 400 Robots Destroyed (27) 135 Value Destroyed (679) 679 Prototype IDs (0) 0 Alien Tech Used (0) 0 Bonus (0) 0 TOTAL SCORE: 1214 Bonus ------- None Cogmind --------- Core Integrity 0/250 Matter 216/300 Energy 87/100 System Corruption 9% Temperature Cool (0) Movement Core (50) Location -10/Subcaves Parts ------- > --- POWER (1) -------- (None) > --- PROPULSION (2) --- (None) > --- UTILITY (2) ------ Signal Interpreter > --- WEAPON (2) ------- (None) > --- INVENTORY (5) ---- Medium Matter Pod (100) Large Matter Pod (130) Cobbler Unit Rocket Launcher Peak State ------------ > --- POWER ------------ Subdweller Power Source > --- PROPULSION ------- Spiked Treads > --- UTILITY ---------- Large Storage Unit Signal Interpreter > --- WEAPON ----------- Heavy EM Pulse Gun Light EM Pulse Cannon > --- INVENTORY -------- Light Ion Engine Medium Matter Pod Large Matter Pod Cobbler Unit Rocket Launcher Rocket Launcher [Rating: 11] Favorites ----------- Power Light Ion Engine Engine Light Ion Engine Propulsion Light Treads Treads Light Treads Utility Signal Interpreter Storage Large Storage Unit Processor Signal Interpreter Weapon Light EM Pulse Cannon Energy Gun Heavy EM Pulse Gun Energy Cannon Light EM Pulse Cannon Ballistic Gun Assault Rifle Launcher Rocket Launcher Build | -11 -10 -10 ------- Run | Yrd Mat Sub Slots Evolved . | . . . Power . | . . . Propulsion . | . . . Utility . | . . . Weapon . | . . . Parts Attached 38 | 4 16 18 Power 4 | . 1 3 Engine 4 | . 1 3 Core . | . . . Reactor . | . . . Propulsion 5 | 2 2 1 Treads 5 | 2 2 1 Leg . | . . . Wheel . | . . . Hover . | . . . Flight . | . . . Utility 2 | . 2 . Device . | . . . Storage 1 | . 1 . Processor 1 | . 1 . Hackware . | . . . Protection . | . . . Artifact . | . . . Weapon 27 | 2 11 14 Energy Gun 7 | 1 1 5 Energy Cannon 9 | . 6 3 Ballistic Gun 2 | 1 1 . Ballistic Cannon . | . . . Launcher 9 | . 3 6 Special Weapon . | . . . Impact Weapon . | . . . Slashing Weapon . | . . . Piercing Weapon . | . . . Special Melee Weapon . | . . . Unidentified Prototypes . | . . . Corrupted Parts 2 | . 1 1 System Corruption 9 | . 3 6 Parts Lost 11 | . . 11 Power 1 | . . 1 Propulsion 3 | . . 3 Utility . | . . . Weapon 7 | . . 7 Highest Loss Streak 4 | . . 4 To Critical Strikes . | . . . Average Slot Usage (%) 84 | . 83 84 Engine 8 | . 10 7 Treads 23 | . 28 21 Storage 10 | . 5 14 Processor 12 | . 10 14 Energy Gun 7 | . 4 8 Energy Cannon 17 | . 18 16 Ballistic Gun 1 | . 4 . Launcher 1 | . . 1 Peak Build Rating 11 | 4 10 11 Average Rating 8 | 3 7 9 On Entrance 4 | . 4 10 Naked Turns . | . . . Heaviest Build 33 | 3 31 33 Greatest Support 40 | 40 40 40 Greatest Overweight (x) 1 | . . 1 Average Overweight (x) . | . . . Largest Inventory Capacity 15 | 5 15 15 Average Capacity 12 | 5 9 15 Most Carried 11 | . 8 11 Average Carried 7 | . 4 8 Final Capacity 15 | 5 15 5 Final Carried 8 | . 8 5 Class Distribution -------------------- 100% | Mutant Dominant Class ---------------- Mutant | -10/Materials Mutant | -10/Subcaves Resources | -11 -10 -10 ----------- Run | Yrd Mat Sub Matter Collected 1257 | 167 343 747 Remotely . | . . . Salvage Created 660 | . 267 393 Parts 51 | . 22 29 Haulers Intercepted . | . . . Recyclers Shooed . | . . . Parts Field Recycled . | . . . Retrieved Matter . | . . . Parts Self-Destructed 8 | . . 8 Prevented 2 | . . 2 Kills | -11 -10 -10 ------- Run | Yrd Mat Sub Combat Hostiles Destroyed 23 | . 9 14 Guns 1 | . 1 . Cannons 4 | . . 4 AOE 17 | . 8 9 Classes Destroyed 9 | . 5 4 Worker 2 | . 2 . Mechanic 1 | . 1 . Watcher 1 | . 1 . Swarmer 10 | . 5 5 Grunt 6 | . 4 2 Sentry 1 | . . 1 Artisan 1 | . . 1 Cobbler 1 | . . 1 Subdweller 6 | . . 6 Best Kill Streak 4 | . 4 4 Combat Bots Only 4 | . 4 4 Max Kills in Single Turn 2 | . 2 2 Gunslinging . | . . . Exploded 2 | . 2 2 Melee . | . . . Uniques/NPCs Destroyed . | . . . Combat | -11 -10 -10 -------- Run | Yrd Mat Sub Hostile Shots Fired 180 | . 26 154 Missed 71 | . 13 58 Damage Taken 1464 | . 172 1292 Core 260 | . 19 241 Absorbed by Shields . | . . . Core Remaining (%) 100 | 100 . . Volleys Fired 53 | . 16 37 Largest 2 | . 2 2 Hottest 112 | . 89 112 Shots Fired 96 | . 33 63 Gun 29 | . 18 11 Cannon 38 | . 8 30 Launcher 29 | . 7 22 Special . | . . . Kinetic 9 | . 9 . Thermal . | . . . Explosive 29 | . 7 22 Electromagnetic 58 | . 17 41 Robot Hit Streak 13 | . 11 13 Robot Miss Streak 4 | . 4 3 Penetration Max . | . . . Secondary Targets . | . . . Shots Hit Robots 56 | . 23 33 Core Hits 41 | . 17 24 Critical Kills . | . . . Critical Parts Destroyed . | . . . Critical Strikes 1 | . . 1 Corrupt 1 | . . 1 Melee Attacks . | . . . Impact . | . . . Slashing . | . . . Piercing . | . . . Sneak Attacks . | . . . Combat Hostiles . | . . . Follow-up Attacks . | . . . Damage Inflicted 2523 | . 946 1577 Guns 196 | . 155 41 Cannons 599 | . 176 423 Explosions 1728 | . 615 1113 Melee . | . . . Ramming . | . . . Kinetic 58 | . 58 . Thermal 139 | . 75 64 Explosive 1589 | . 540 1049 Electromagnetic 737 | . 273 464 Impact . | . . . Slashing . | . . . Piercing . | . . . Highest Corruption 9 | . 3 9 Average Corruption 4 | . 3 4 Corruption Purged . | . . . Corruption Blocked . | . . . Effects 46 | . 9 37 Message Errors 13 | . . 13 Matter Fused 6 | . 2 4 Heat Flow Errors 11 | . 4 7 Energy Discharges 4 | . 1 3 Parts Fused 2 | . . 2 Data Loss (minor) 6 | . 1 5 Data Loss (major) 1 | . . 1 Misfires 2 | . 1 1 Weapon Failures 1 | . . 1 Overload Shots . | . . . Overflow Damage 109 | . 17 92 Projectiles . | . . . Explosions 109 | . 17 92 Melee . | . . . Knockbacks . | . . . Impact . | . . . Kinetic . | . . . Secondary . | . . . Self-Inflicted Damage 168 | . 5 163 Shots 6 | . 1 5 Rammed . | . . . Targets Rammed . | . . . Kicked . | . . . Crushed . | . . . Highest Temperature 245 | . 237 245 Average Temperature 72 | . 64 88 Received Heat Transfer 489 | . 87 402 Siege Activations . | . . . Robots Corrupted 1 | . . 1 Combat Hostiles 1 | . . 1 Parts Fried 4 | . 1 3 Impact Corruptions . | . . . Robots Melted . | . . . Combat Hostiles . | . . . Parts Melted . | . . . Heat Transferred 150 | . 100 50 Parts Sabotaged . | . . . Parts Stolen . | . . . Parts Stripped . | . . . Power Chain Reactions 3 | . 2 1 Alert | -11 -10 -10 ------- Run | Yrd Mat Sub Peak Influence 204 | . 204 . Initial . | . . . Average 73 | . 78 . Maximum Alert Level 1 | . 1 . Low Security (%) 94 | 100 93 . Level 1 5 | . 6 . Level 2 . | . . . Level 3 . | . . . Level 4 . | . . . Level 5 . | . . . High Security . | . . . Max Security . | . . . Squads Dispatched . | . . . Investigation . | . . . Extermination . | . . . Reinforcement . | . . . Assault . | . . . Garrison . | . . . Intercept . | . . . Searches Triggered . | . . . Construction Impeded . | . . . Haulers Reinforced . | . . . Active Scanning Responses . | . . . Cargo Convoy Interrupts . | . . . Stealth | -11 -10 -10 --------- Run | Yrd Mat Sub Distress Signals 1 | . 1 . Communications Jammed . | . . . Distress Signals . | . . . Times Spotted 43 | . 13 30 Peak Tracking Total 5 | . 5 4 Tactical Retreats 5 | . . 5 Traps | -11 -10 -10 ------- Run | Yrd Mat Sub Traps Triggered 3 | . . 3 Indirectly . | . . . Trap Hack Attempts . | . . . Triggered . | . . . Disarmed . | . . . Reprogrammed . | . . . Reused . | . . . Traps Extracted . | . . . Installed . | . . . Triggered . | . . . Machines | -11 -10 -10 ---------- Run | Yrd Mat Sub Machines Disabled 5 | . 2 3 Max in Single Turn 1 | . 1 1 Machines Repaired . | . . . Machines Dismantled . | . . . Machines Sabotaged . | . . . Overloaded Fab Kills . | . . . Hacking | -11 -10 -10 --------- Run | Yrd Mat Sub Machines Accessed 1 | . . 1 Terminals . | . . . Fabricators . | . . . Repair Stations . | . . . Recycling Units . | . . . Scanalyzers . | . . . Garrison Access . | . . . Total Hacks 4 | . . 4 Successful 4 | . . 4 Failed . | . . . Catastrophic . | . . . Database Lockouts . | . . . Manual . | . . . Terminals . | . . . Fabricators . | . . . Repair Stations . | . . . Recycling Units . | . . . Scanalyzers . | . . . Garrison Access . | . . . Terminal Hacks 4 | . . 4 Record 4 | . . 4 Fabricator Hacks . | . . . Repair Station Hacks . | . . . Recycling Unit Hacks . | . . . Scanalyzer . | . . . Garrison Access Hacks . | . . . Unauthorized Hacks . | . . . Terminals . | . . . Fabricators . | . . . Repair Stations . | . . . Recycling Units . | . . . Scanalyzers . | . . . Garrison Access . | . . . Data Cores Recovered . | . . . Used . | . . . Hacking Detections . | . . . Full Trace Events . | . . . Feedback Events . | . . . Feedback Blocked . | . . . Robot Schematics Acquired . | . . . Robots Built . | . . . Authchips . | . . . Time . | . . . Total Robot Build Rating . | . . . Part Schematics Acquired . | . . . Parts Built . | . . . Authchips . | . . . Time . | . . . Total Part Build Rating . | . . . Parts Repaired . | . . . Time . | . . . Parts Recycled . | . . . Recycled Matter . | . . . Retrieved Matter . | . . . Retrieved Components . | . . . Parts Scanalyzed . | . . . Part Schematics Acquired . | . . . Parts Damaged . | . . . Bothacking | -11 -10 -10 ------------ Run | Yrd Mat Sub Used RIF Installer . | . . . Robots Hacked . | . . . Non-combat . | . . . Combat . | . . . Robot Hacks Applied . | . . . Relay Couplers Released . | . . . Fabnet Peak Effective % . | . . . Robots Rewired . | . . . Allies Hacked . | . . . Hacks Repelled . | . . . Allies | -11 -10 -10 -------- Run | Yrd Mat Sub Total Allies . | . . . Largest Group . | . . . Highest-Rated Group . | . . . Highest-Rated Ally . | . . . Total Orders . | . . . Ally Attacks . | . . . Total Damage . | . . . Kills . | . . . Allies Corrupted . | . . . Allies Melted . | . . . Intel | -11 -10 -10 ------- Run | Yrd Mat Sub Robot Analysis Total . | . . . Derelict Logs Recovered 1 | . . 1 Drone Launches . | . . . Drone Recoveries . | . . . Exploration | -11 -10 -10 ------------- Run | Yrd Mat Sub Turns Passed 2707 | 74 988 1645 Spaces Moved 1259 | 45 563 651 Core 6 | 3 2 1 Treads 1253 | 42 561 650 Legs . | . . . Wheels . | . . . Hover . | . . . Flight . | . . . Fastest Speed 50 | 50 50 50 Average Speed 181 | 152 159 202 Slowest Speed 260 | 160 160 260 Overloaded Moves . | . . . Propulsion Burnouts . | . . . Robots Hopped . | . . . Cave-ins Triggered . | . . . Exploration Rate (%) 37 | 5 59 48 Regions Visited 2 Branch Regions 1 Pre-discovered Areas 1 | . . 1 Known Exits Taken 1 | . 1 . Unknown Exits Taken 1 | 1 . . Scrap Searched . | . . . Spaces Dug 8 | . . 8 Terrain Destroyed 189 | . 60 129 Melee . | . . . Projectile . | . . . AOE 189 | . 60 129 Terrain Rammed . | . . . Walls Destroyed . | . . . Machines Disabled . | . . . Actions | -11 -10 -10 --------- Run | Yrd Mat Sub Total 1572 | 48 614 910 Wait 203 | . 6 197 Move 1257 | 44 562 651 Hop . | . . . Pick Up 14 | . 11 3 Fast Attach 11 | 4 6 1 Attach 6 | . . 6 Detach . | . . . Swap 21 | . 10 11 Drop 7 | . 3 4 Fire 53 | . 16 37 Melee . | . . . Ram . | . . . Kick . | . . . Crush . | . . . Escape Stasis . | . . . Rewire . | . . . Trap . | . . . Miscellaneous . | . . . Route ------- -11/Scrapyard -10/Materials (discovered 4 exits: [*Mat x2] / [*Min] / *Sub) -10/Subcaves (discovered 1 exit: *Rec) History --------- Turn | Location | Event 6 | -11/Scrapyard | Discovered new exit (range 15) 75 | -11/Scrapyard | Entered Materials 250 | -10/Materials | Discovered new exit (range 11) 303 | -10/Materials | Discovered new exit (range 14) 312 | -10/Materials | Build established: Mutant 793 | -10/Materials | Discovered new exit (range 4) 1050 | -10/Materials | Discovered new exit (range 9) 1061 | -10/Materials | Identified exit to Subcaves 1063 | -10/Materials | Entered Subcaves 1411 | -10/Subcaves | Identified exit to Recycling 1523 | -10/Subcaves | Lost 3 parts (1p1n1w) 1539 | -10/Subcaves | Visited Clippyterm 1544 | -10/Subcaves | Learned location of Extension (-6) 1550 | -10/Subcaves | Core integrity fell below 50% 1755 | -10/Subcaves | A swath of the cavern ceiling suddenly collapsed 1946 | -10/Subcaves | Ambushed by Subdwellers from Twisted Machinery 2485 | -10/Subcaves | Shifting Twisted Machinery released Sub. Machine Gun 2703 | -10/Subcaves | Core integrity fell below 20% 2705 | -10/Subcaves | Ambushed by Subdweller buried in earth 2708 | -10/Subcaves | Destroyed by KJ-QIH(R) with Subdweller Machine Gun Last Messages --------------- Sub. Machine Gun falls loose from the Twisted Machinery. 02491_ ZLPUBT&FUAHIR16G//XMRV#K&W8>>A/9 02527_ C4H1IVPN#7MS=MY>LST,M8OI 02542_ / UGP3TPSYX0C 6W0HFN HCEZYQ G%Y 02580_ System corrupted: Heat flow error (+267). 02638_ PS4Y0BXSTMAJG,E%0R/2DC6CW BOLLA5WDCE#8 02659_ 40-PWN(R) destroyed. 02671_ %C12OOAN,QRW<:CDNQDHWPBMPUC%K116V#HIW4KZ 02679_ Acquired 39 matter. 02693_ K BHJZNUU1QTUEAFGRUWLCDMZ L2WDOY6 E 02700_ Lgt. EM Pulse Cannon destroyed. 02702_ System corrupted: Hvy. EM Pulse Gun failed to cycle. 02705_ Hvy. EM Pulse Gun destroyed. 02705_ Destroyed Hvy. EM Pulse Gun. 02705_ Rocket Launcher destroyed. 02705_ Destroyed Rocket Launcher. 02706_ M4-JZW(R): "ARGHSUB!" 02707_ Spk. Treads destroyed. 02708_ Subatomizers dissect the Sub. Monowheel. 02708_ Dropped Lrg. Storage Unit. Map ----- +----------------------------------------------------+ | ?????????????????????????????????????????? | | ?????????????????????????????????????????? | | ?????????????????????????????????????????? | | ?????????????????????????????????????????? | | ?????????????????????????????????????????? | | ?????????????????????????????????????????? | | ?????????????????????????????????????????? | | ?????????????????????????????????????????? | | ?????????????????????????????????????????? | | ?????????????????????????????????????????? | | ????????????????? ???????????????????????? | | ????????????????? ???????????????????????? | | ????????????????? ???????????????????????? | | ????????????????? #??????????????????????? | | ????????????????? ??????????????????????? | | ????????????????? #??????????????????????? | | ????????????????? ###????????????????????? | | ???????????????## ###??????????????????? | | ???????????????# #??????????????????? | | ??????????????? ##?????????????????? | | ????????????#### ??????????????????? | | ????????????# R ???????????????????? | | ????????????## ????????????????????? | | ????????????# R #?????????????????????? | | ????????????# ###???????????????????? | | ????????????# *!@ ####???###??????????? | | ????????????# ## ##?## #??????????? | | ????????????#### # ### ##?????????? | | ???????????????#### !* #####?????? | | ?????????????????# & ! ##????? | | ?????????????????# = #????? | | ?????????????????## ##??????? | | ??????????????????# ## # #???????? | | ?????????????????######### ##??????? | | ????????????????## #???### ## #?? | | ???????????????## ##?## ## "" #??? | | ???????????????# ###"" """ "" #??? | | ???????????????# "#"" " | | ???????????????# ## #" "### "## | | ???????????????# ## #" #?###?? ?? | | ???????????????## ## "" #?????? ?? | | ????????????????#### ###" """#????????? | | ??????????????????# ##?## #"""??????" | | ??????????????????## #???####""???????"" | | ???????????????????# #####????????????"" | | ???????????????????## #####????????## | | ????????????????????# """#?????????# | | ????????????????????## ## "###?????????? | | ?????????????????????#### "#####???????? | | ???????????????????????## #" #???????? | +----------------------------------------------------+ Best States ------------- Heat Dissipation 25 Energy Generation 15 Energy Capacity 250 Matter Stores 300 Matter Capacity 300 Sight Range 16 Terrain Scan Density 10 Evasion (%) 40 Recoil Reduction 2 Item Schematics ----------------- None Robot Schematics ------------------ None Fabricated ------------ Nothing Alien Tech Used ----------------- None Achievements -------------- None Challenges ------------ None Game ------ Seed DynamicTargetingActivator Manual? 0 Play Time 00:15:29 Cumulative 56.9 hours Start 2024.08.26 @ 20:04:51 End 2024.08.26 @ 20:20:14 Sessions 1 Manual Loads 0 Difficulty Rogue Special Mode None Game No. 106 Rogue 106 Adventurer 0 Explorer 0 Win Type - Total 0 Types 0/0/0/0/0/0/0/0/0 Lore% 22 Gallery% 43 Achievement% 35 Wizard Run 0 Options --------- Layout 0 ASCII 0 Keyboard 0 Movement Numpad Keybinds 0 Fullscreen 2 Font 18/SmallcapsGlow Map View 76x50 Zoom Use 0% Tactical HUD 1 Map Filters NONE Filters NONE Steam 1 RUN: 7aa11539-61e3-419e-82d0-8c21fcc11701